[Event "*** Titled Tuesday Blitz"]
[Site "Chess.com"]
[Date "2020.11.10"]
[Round "11"]
[White "Savva09022009"]
[Black "hungrycaterpillar4"]
[Result "0-1"]
[WhiteElo "2442"]
[BlackElo "2622"]
[TimeControl "180+1"]
[EndTime "12:14:36 PST"]
[Termination "hungrycaterpillar4 won on time"]

1. d4 {[%clk 0:03:00.9]} 1... Nf6 {[%clk 0:02:56.7]} 2. Nc3 {[%clk 0:03:01.2]}
2... d5 {[%clk 0:02:56.5]} 3. Bf4 {[%clk 0:03:01.4]} 3... e6 {[%clk 0:02:56.9]}
4. e3 {[%clk 0:03:01.7]} 4... Bb4 {[%clk 0:02:56.7]} 5. Bd3 {[%clk 0:03:00.3]}
5... c5 {[%clk 0:02:55.8]} 6. dxc5 {[%clk 0:02:59.5]} 6... Nbd7 {[%clk
0:02:55.7]} 7. Nf3 {[%clk 0:02:55.9]} 7... Bxc3+ {[%clk 0:02:53.9]} 8. bxc3
{[%clk 0:02:54.7]} 8... Nxc5 {[%clk 0:02:53.5]} 9. O-O {[%clk 0:02:55.1]} 9...
O-O {[%clk 0:02:53.5]} 10. c4 {[%clk 0:02:53.5]} 10... b6 {[%clk 0:02:36.8]} 11.
cxd5 {[%clk 0:02:50.2]} 11... Qxd5 {[%clk 0:02:37]} 12. Qe2 {[%clk 0:02:46.5]}
12... Nxd3 {[%clk 0:02:11.2]} 13. cxd3 {[%clk 0:02:41.1]} 13... Ba6 {[%clk
0:02:11.1]} 14. Rfd1 {[%clk 0:02:32.6]} 14... Rfd8 {[%clk 0:02:10]} 15. Ne1
{[%clk 0:02:26.9]} 15... e5 {[%clk 0:02:07.9]} 16. Bg5 {[%clk 0:02:26.6]} 16...
Qe6 {[%clk 0:01:46.1]} 17. Qb2 {[%clk 0:02:18.8]} 17... h6 {[%clk 0:01:44.2]}
18. Bxf6 {[%clk 0:02:15.3]} 18... Qxf6 {[%clk 0:01:44.3]} 19. Nf3 {[%clk
0:02:16.2]} 19... Rxd3 {[%clk 0:01:37.6]} 20. Rxd3 {[%clk 0:02:11.8]} 20... Bxd3
{[%clk 0:01:38.5]} 21. Qxe5 {[%clk 0:02:11]} 21... Qxe5 {[%clk 0:01:29.7]} 22.
Nxe5 {[%clk 0:02:11.9]} 22... Bf5 {[%clk 0:01:30.2]} 23. f3 {[%clk 0:01:51.8]}
23... Rc8 {[%clk 0:01:26.5]} 24. e4 {[%clk 0:01:51.5]} 24... Be6 {[%clk
0:01:26.6]} 25. a4 {[%clk 0:01:51.8]} 25... g5 {[%clk 0:01:22.6]} 26. a5 {[%clk
0:01:27.3]} 26... b5 {[%clk 0:01:21.9]} 27. Rb1 {[%clk 0:01:25.9]} 27... a6
{[%clk 0:01:19.6]} 28. Nd3 {[%clk 0:01:24.6]} 28... Rc4 {[%clk 0:01:17.9]} 29.
Nb4 {[%clk 0:01:23.1]} 29... Bc8 {[%clk 0:01:14.2]} 30. Kf2 {[%clk 0:01:21.9]}
30... f5 {[%clk 0:01:10.5]} 31. Nd5 {[%clk 0:01:18.7]} 31... fxe4 {[%clk
0:01:07.8]} 32. fxe4 {[%clk 0:01:15.6]} 32... Be6 {[%clk 0:01:05.7]} 33. Nb4
{[%clk 0:01:06.9]} 33... Rxe4 {[%clk 0:01:04.6]} 34. Nxa6 {[%clk 0:01:06.7]}
34... Bc4 {[%clk 0:01:04.5]} 35. Nc5 {[%clk 0:01:02.3]} 35... Re2+ {[%clk
0:01:04]} 36. Kf3 {[%clk 0:01:00.7]} 36... Ra2 {[%clk 0:01:03.5]} 37. a6 {[%clk
0:00:59.8]} 37... Kg7 {[%clk 0:01:01.5]} 38. Ke4 {[%clk 0:00:52.4]} 38... Kg6
{[%clk 0:00:55.8]} 39. Ke5 {[%clk 0:00:48.3]} 39... g4 {[%clk 0:00:45.5]} 40.
Kd6 {[%clk 0:00:45.2]} 40... h5 {[%clk 0:00:36.7]} 41. Kc6 {[%clk 0:00:31]}
41... b4 {[%clk 0:00:26.6]} 42. Kb6 {[%clk 0:00:28]} 42... b3 {[%clk 0:00:26]}
43. a7 {[%clk 0:00:26]} 43... b2 {[%clk 0:00:26.4]} 44. Kc6 {[%clk 0:00:09.6]}
44... Kf5 {[%clk 0:00:19.4]} 45. Rxb2 {[%clk 0:00:07.8]} 45... Rxa7 {[%clk
0:00:17.8]} 46. Rf2+ {[%clk 0:00:07.7]} 46... Kg6 {[%clk 0:00:17.3]} 47. Kd6
{[%clk 0:00:07.1]} 47... Ra5 {[%clk 0:00:10]} 48. Ne4 {[%clk 0:00:06.3]} 48...
Rd5+ {[%clk 0:00:09.7]} 49. Kc6 {[%clk 0:00:06.3]} 49... Re5 {[%clk 0:00:08.8]}
50. Ng3 {[%clk 0:00:06]} 50... h4 {[%clk 0:00:06.1]} 51. Nf1 {[%clk 0:00:04.7]}
51... Bxf1 {[%clk 0:00:05.9]} 52. Rxf1 {[%clk 0:00:05.6]} 52... Re2 {[%clk
0:00:06.6]} 53. Rg1 {[%clk 0:00:05.8]} 53... g3 {[%clk 0:00:06.6]} 54. hxg3
{[%clk 0:00:05.6]} 54... hxg3 {[%clk 0:00:07.5]} 55. Kd5 {[%clk 0:00:06.3]}
55... Kf5 {[%clk 0:00:07.9]} 56. Kd4 {[%clk 0:00:06.4]} 56... Kf4 {[%clk
0:00:08.3]} 57. Kd3 {[%clk 0:00:06.6]} 57... Rf2 {[%clk 0:00:08.9]} 58. Kd4
{[%clk 0:00:05.8]} 58... Rd2+ {[%clk 0:00:09.1]} 59. Kc3 {[%clk 0:00:05.5]}
59... Ke3 {[%clk 0:00:10]} 60. Re1+ {[%clk 0:00:01]} 60... Re2 {[%clk
0:00:10.2]} 61. Rh1 {[%clk 0:00:01.9]} 61... Rxg2 {[%clk 0:00:10.1]} 62. Rh8
{[%clk 0:00:02.6]} 62... Ra2 {[%clk 0:00:09.7]} 63. Re8+ {[%clk 0:00:02.8]}
63... Kf2 {[%clk 0:00:10]} 64. Rf8+ {[%clk 0:00:03.3]} 64... Kg1 {[%clk
0:00:10.2]} 65. Kd3 {[%clk 0:00:03.8]} 65... g2 {[%clk 0:00:10]} 66. Rg8 {[%clk
0:00:04]} 66... Kf1 {[%clk 0:00:09.8]} 67. Rf8+ {[%clk 0:00:04]} 67... Rf2
{[%clk 0:00:10.4]} 0-1

[Event "*** Titled Tuesday Blitz"]
[Site "Chess.com"]
[Date "2020.11.10"]
[Round "11"]
[White "Skat2704"]
[Black "lelya96"]
[Result "1-0"]
[WhiteElo "2404"]
[BlackElo "2233"]
[TimeControl "180+1"]
[EndTime "12:14:37 PST"]
[Termination "Skat2704 won by checkmate"]

1. d4 {[%clk 0:03:00.6]} 1... d5 {[%clk 0:02:58.5]} 2. Nf3 {[%clk 0:02:59.9]}
2... Nf6 {[%clk 0:02:57.2]} 3. c4 {[%clk 0:02:59.3]} 3... c6 {[%clk 0:02:56.7]}
4. Nc3 {[%clk 0:02:58.5]} 4... dxc4 {[%clk 0:02:55.7]} 5. a4 {[%clk 0:02:55.4]}
5... Bf5 {[%clk 0:02:54.7]} 6. e3 {[%clk 0:02:55.6]} 6... e6 {[%clk 0:02:53.1]}
7. Bxc4 {[%clk 0:02:56.1]} 7... Bb4 {[%clk 0:02:52.7]} 8. O-O {[%clk 0:02:56.6]}
8... Nbd7 {[%clk 0:02:51]} 9. Qe2 {[%clk 0:02:53.9]} 9... Bg6 {[%clk 0:02:50.4]}
10. Rd1 {[%clk 0:02:51.5]} 10... Qa5 {[%clk 0:02:49.4]} 11. Bd2 {[%clk
0:02:40.6]} 11... O-O {[%clk 0:02:47.8]} 12. e4 {[%clk 0:02:32.8]} 12... e5
{[%clk 0:02:25.4]} 13. d5 {[%clk 0:02:17.8]} 13... Rad8 {[%clk 0:02:15.3]} 14.
dxc6 {[%clk 0:02:10]} 14... bxc6 {[%clk 0:02:14.6]} 15. Nh4 {[%clk 0:01:54.8]}
15... Qb6 {[%clk 0:01:36.5]} 16. Nxg6 {[%clk 0:01:45.9]} 16... hxg6 {[%clk
0:01:35.9]} 17. Bg5 {[%clk 0:01:40.5]} 17... Be7 {[%clk 0:01:25.3]} 18. Be3
{[%clk 0:01:33.9]} 18... Bc5 {[%clk 0:01:16]} 19. a5 {[%clk 0:01:30.7]} 19...
Qc7 {[%clk 0:01:11.8]} 20. Bxc5 {[%clk 0:01:23.4]} 20... Nxc5 {[%clk 0:01:11.5]}
21. b4 {[%clk 0:01:22.6]} 21... Nb7 {[%clk 0:00:57]} 22. Rac1 {[%clk 0:01:14.5]}
22... Qe7 {[%clk 0:00:52.2]} 23. Qb2 {[%clk 0:01:03.3]} 23... Nd6 {[%clk
0:00:45.2]} 24. Bd3 {[%clk 0:01:01.7]} 24... Qe6 {[%clk 0:00:38.7]} 25. f3
{[%clk 0:00:57.4]} 25... Nc4 {[%clk 0:00:36.3]} 26. Qe2 {[%clk 0:00:53.4]} 26...
Nd6 {[%clk 0:00:29.1]} 27. Na4 {[%clk 0:00:51.8]} 27... Qe8 {[%clk 0:00:18.7]}
28. Nc5 {[%clk 0:00:50.8]} 28... Nh5 {[%clk 0:00:18.7]} 29. g3 {[%clk
0:00:49.9]} 29... f5 {[%clk 0:00:09.6]} 30. Bc4+ {[%clk 0:00:47.4]} 30... Kh7
{[%clk 0:00:09.1]} 31. Ne6 {[%clk 0:00:46.5]} 31... fxe4 {[%clk 0:00:09.5]} 32.
Nxf8+ {[%clk 0:00:44.6]} 32... Qxf8 {[%clk 0:00:09.3]} 33. fxe4 {[%clk
0:00:43.2]} 33... Nf6 {[%clk 0:00:09.5]} 34. Bd3 {[%clk 0:00:42]} 34... Qe7
{[%clk 0:00:09.5]} 35. Qg2 {[%clk 0:00:41.3]} 35... Qe6 {[%clk 0:00:09.7]} 36.
Rxc6 {[%clk 0:00:38.7]} 36... Rb8 {[%clk 0:00:09.1]} 37. Bf1 {[%clk 0:00:36.4]}
37... Nfe8 {[%clk 0:00:07.4]} 38. Qh3+ {[%clk 0:00:34.9]} 38... Qxh3 {[%clk
0:00:07]} 39. Bxh3 {[%clk 0:00:35]} 39... Rxb4 {[%clk 0:00:07.5]} 40. Rcxd6
{[%clk 0:00:34.5]} 40... Nxd6 {[%clk 0:00:07.3]} 41. Rxd6 {[%clk 0:00:34.5]}
41... Ra4 {[%clk 0:00:06.4]} 42. Ra6 {[%clk 0:00:32]} 42... Rxe4 {[%clk
0:00:05.2]} 43. Rxa7 {[%clk 0:00:30.6]} 43... Re1+ {[%clk 0:00:06.1]} 44. Kf2
{[%clk 0:00:30.2]} 44... Ra1 {[%clk 0:00:06]} 45. Bg2 {[%clk 0:00:29.9]} 45...
Ra2+ {[%clk 0:00:06.3]} 46. Kg1 {[%clk 0:00:26.2]} 46... Ra1+ {[%clk 0:00:06.5]}
47. Bf1 {[%clk 0:00:25.8]} 47... e4 {[%clk 0:00:06.1]} 48. Kf2 {[%clk
0:00:25.3]} 48... Ra2+ {[%clk 0:00:05.8]} 49. Ke3 {[%clk 0:00:24.4]} 49... Ra1
{[%clk 0:00:05.8]} 50. Be2 {[%clk 0:00:23.2]} 50... Ra2 {[%clk 0:00:05.5]} 51.
a6 {[%clk 0:00:22.7]} 51... Kh6 {[%clk 0:00:03.1]} 52. Ra8 {[%clk 0:00:22.5]}
52... Kh7 {[%clk 0:00:03.4]} 53. a7 {[%clk 0:00:21.7]} 53... g5 {[%clk
0:00:03.9]} 54. Bc4 {[%clk 0:00:20.5]} 54... Ra3+ {[%clk 0:00:03.8]} 55. Kxe4
{[%clk 0:00:20.2]} 55... Ra4 {[%clk 0:00:04.7]} 56. Kd4 {[%clk 0:00:19.9]} 56...
Kg6 {[%clk 0:00:03.5]} 57. Kc5 {[%clk 0:00:20]} 57... Ra5+ {[%clk 0:00:03.6]}
58. Bb5 {[%clk 0:00:20]} 58... Ra2 {[%clk 0:00:03.4]} 59. Kb6 {[%clk 0:00:20.2]}
59... Kf6 {[%clk 0:00:02.9]} 60. Rf8+ {[%clk 0:00:20.2]} 60... Ke5 {[%clk
0:00:03.3]} 61. a8=Q {[%clk 0:00:19.9]} 61... Kd4 {[%clk 0:00:04.2]} 62. Qxa2
{[%clk 0:00:18.6]} 62... g4 {[%clk 0:00:05.1]} 63. Qd2+ {[%clk 0:00:18.4]} 63...
Ke4 {[%clk 0:00:04.9]} 64. Rf4+ {[%clk 0:00:16.5]} 64... Ke5 {[%clk 0:00:05.2]}
65. Qd4+ {[%clk 0:00:16.2]} 65... Ke6 {[%clk 0:00:04.9]} 66. Re4+ {[%clk
0:00:16.1]} 66... Kf5 {[%clk 0:00:04.8]} 67. Rxg4 {[%clk 0:00:15.3]} 67... g5
{[%clk 0:00:04.5]} 68. Qe4+ {[%clk 0:00:14.9]} 68... Kf6 {[%clk 0:00:04.9]} 69.
Qc6+ {[%clk 0:00:13.7]} 69... Ke5 {[%clk 0:00:05.1]} 70. Rc4 {[%clk 0:00:13.4]}
70... Kf5 {[%clk 0:00:05.2]} 71. Qe4+ {[%clk 0:00:12.4]} 71... Kf6 {[%clk
0:00:05.2]} 72. Rc6+ {[%clk 0:00:12.5]} 72... Kf7 {[%clk 0:00:05.4]} 73. Qe6+
{[%clk 0:00:12.5]} 73... Kg7 {[%clk 0:00:05.5]} 74. Rc7+ {[%clk 0:00:12.5]}
74... Kf8 {[%clk 0:00:05.4]} 75. Qc8# {[%clk 0:00:12.8]} 1-0